bitfinex-derivatives/quotes_ETHF0:USTF0_20240928
["timestamp","ask_amount","ask_price","bid_price","bid_amount"]
[1727525310396,1.72415,2672.3,2672.2,3.21109606]
[1727525311009,1.72415,2672.3,2672.2,3.7028366]
[1727525311308,1.72415,2672.3,2672.2,2.22993387]
[1727525311807,1.72415,2672.3,2672.2,3.7028366]
[1727525314011,1.72415,2672.3,2672.2,2.22993387]
[1727525314513,7.93815,2672.3,2672.2,1.77504769]
[1727525314814,1.72415,2672.3,2672.2,3.21108401]
[1727525315005,1.72415,2672.3,2672.2,3.21107862]
[1727525315207,1.72415,2672.3,2672.2,2.22992768]
[1727525315409,1.72415,2672.3,2672.2,3.70283041]
[1727525316009,1.72415,2672.3,2672.2,2.22992768]
[1727525316907,1.72415,2672.3,2672.2,3.70283041]
[1727525317112,1.35,2672.3,2672.2,3.70283041]
[1727525317511,1.72415,2672.3,2672.2,3.70283041]
[1727525318109,1.72415,2672.3,2672.2,2.22992768]
[1727525318912,1.72415,2672.3,2672.2,3.70283041]
[1727525320114,1.72415,2672.3,2672.2,2.22999444]
[1727525320316,1.72415,2672.3,2672.2,3.70289717]
[1727525322215,1.72415,2672.3,2672.2,3.21122591]
[1727525322514,1.72415,2672.3,2672.2,3.21123917]
[1727525322719,1.72415,2672.3,2672.2,2.22999444]
[1727525323118,1.72415,2672.3,2672.2,3.21134909]
[1727525323518,1.72415,2672.3,2672.2,3.70301277]
[1727525324217,1.72415,2672.3,2672.2,3.21138796]
[1727525325210,1.72415,2672.3,2672.2,3.70301277]
[1727525326415,1.72415,2672.3,2672.2,1.77525789]
[1727525326614,1.72415,2672.3,2672.2,3.21160696]
[1727525326821,1.72415,2672.3,2672.2,1.77525789]
[1727525327617,1.72415,2672.3,2672.2,3.2116501]
[1727525328118,1.72415,2672.3,2672.2,1.77525789]
[1727525328314,1.35,2672.3,2672.2,1.77525789]
[1727525328519,1.72415,2672.3,2672.2,3.21169373]
[1727525329528,1.72415,2672.3,2672.2,4.07739857]
[1727525329529,1.35,2672.3,2672.2,4.07739857]
[1727525329828,1.35,2672.3,2672.2,3.70323857]
[1727525330021,1.72415,2672.3,2672.2,3.70323857]
[1727525333030,1.72415,2672.3,2672.2,3.70350442]
[1727525334729,1.72415,2672.3,2672.2,3.70370454]
[1727525339442,1.72415,2672.3,2672.2,3.70424289]
[1727525342837,1.72415,2672.3,2672.2,3.70451542]
[1727525350040,1.72415,2672.3,2672.2,2.23161269]
[1727525351647,1.72415,2672.3,2672.2,3.70531889]
[1727525351848,1.72415,2672.3,2672.2,2.23161269]
[1727525352446,1.72415,2672.3,2672.2,3.70557132]
[1727525352941,1.72415,2672.3,2672.2,3.7055896]
[1727525356154,1.72415,2672.3,2672.2,2.23185681]
[1727525357356,1.72415,2672.3,2672.2,2.23190305]
[1727525362261,1.72415,2672.3,2672.2,2.23194413]
[1727525364757,7.93815,2672.3,2672.2,2.23194413]
[1727525364966,1.72415,2672.3,2672.2,2.23194413]
[1727525367150,1.72415,2672.3,2672.2,2.23200149]
[1727525368559,1.72415,2672.3,2672.2,3.70587797]
[1727525368761,1.72415,2672.3,2672.2,2.23200149]
[1727525373463,1.72415,2672.3,2672.2,4.19704237]
[1727525374256,1.72415,2672.3,2672.2,2.23200149]
[1727525375056,1.72415,2672.3,2672.2,4.19704237]
[1727525375566,1.72415,2672.3,2672.2,2.23200149]
[1727525376465,1.72415,2672.3,2672.2,4.19704237]
[1727525377365,1.72415,2672.3,2672.2,2.23200149]
[1727525381565,1.72415,2672.3,2672.2,2.23214417]
[1727525383178,1.72415,2672.3,2672.2,4.19718505]
[1727525383868,1.72415,2672.3,2672.2,2.23214417]
[1727525386674,1.72415,2672.3,2672.2,2.23214558]
[1727525387976,1.72415,2672.3,2672.2,4.19718646]
[1727525388871,1.72415,2672.3,2672.2,2.23214558]
[1727525389067,1.35,2672.3,2672.2,2.23214558]
[1727525389266,1.72415,2672.3,2672.2,2.23214558]
[1727525391168,1.72415,2672.3,2672.2,0.7939]
[1727525391368,1.72415,2672.3,2672.2,2.23215493]
[1727525392580,1.35,2672.3,2672.2,2.23215493]
[1727525392877,1.72415,2672.3,2672.2,2.23215493]
[1727525393270,1.72415,2672.3,2672.2,4.1971996]
[1727525393874,1.72415,2672.3,2672.2,2.23215872]
[1727525396173,1.72415,2672.3,2672.2,2.23217344]
[1727525397567,1.72415,2672.3,2672.2,3.70620291]
[1727525398380,1.72415,2672.3,2672.2,2.91230291]
[1727525398574,2.18335,2672.3,2672.2,2.91230291]
[1727525400579,2.18335,2672.3,2672.2,2.91212964]
[1727525404280,2.18335,2672.3,2672.2,2.91194266]
[1727525409187,2.18335,2672.3,2672.2,1.43782048]
[1727525412687,2.18335,2672.3,2672.2,2.91184995]
[1727525412887,2.18335,2672.3,2672.2,2.42016058]
[1727525413777,2.18335,2672.3,2672.2,0.9823401]
[1727525413982,2.18335,2672.3,2672.2,1.43772252]
[1727525414382,2.18335,2672.3,2672.2,2.42003719]
[1727525414989,2.18335,2672.3,2672.2,1.43772252]
[1727525415891,2.18335,2672.3,2672.2,1.88812252]
[1727525416489,2.18335,2672.3,2672.2,2.32502252]
[1727525417492,2.44219332,2672.3,2672.2,2.32502252]
[1727525418696,2.44219332,2672.3,2672.2,0.8873]
[1727525418897,2.18335,2672.3,2672.2,2.32497601]
[1727525420683,2.18335,2672.3,2672.2,3.79900548]
[1727525420988,2.18335,2672.3,2672.2,2.32497601]
[1727525421380,2.18335,2672.3,2672.2,3.79900548]
[1727525421792,2.18335,2672.3,2672.2,2.32497601]
[1727525422090,1.30957,2672.2,2672.1,0.98232878]
[1727525422296,0.37418,2672.1,2672.0,1.93802947]
[1727525422490,3.58198,2672.1,2672.0,1.93802947]
[1727525434495,0.37418,2672.1,2672.0,1.93802947]
[1727525435001,6.214,2671.9,2671.6,2.42567176]
[1727525435208,0.847,2671.8,2671.4,1.3436]
[1727525435410,1.35,2671.5,2671.4,1.3436]
[1727525436306,1.35,2671.5,2670.7,2.9142692]
[1727525436307,8.301,2671.5,2670.8,2.42567176]
[1727525436502,3.5558,2671.5,2671.2,0.4331]
[1727525436810,3.2078,2671.5,2671.3,0.4469]
[1727525437011,1.35,2671.4,2671.3,0.9147]
[1727525455531,1.72427,2671.4,2671.3,0.9147]
[1727525455931,2.17807,2671.4,2671.3,0.9147]
[1727525457734,2.17807,2671.4,2671.3,0.4469]
[1727525459533,1.8038,2671.4,2671.3,0.4469]
[1727525460224,2.17807,2671.4,2671.3,0.4469]
[1727525460426,1.8038,2671.4,2671.3,0.4469]
[1727525461341,2.17807,2671.4,2671.3,0.4469]
[1727525462439,1.35,2671.4,2671.3,0.4469]
[1727525464433,1.72427,2671.4,2671.3,0.4469]
[1727525464637,1.35,2671.4,2671.3,0.4469]
[1727525465028,1.72427,2671.4,2671.3,0.4469]
[1727525465232,1.35,2671.4,2671.3,0.4469]
[1727525465427,7.564,2671.4,2671.3,0.4469]
[1727525465633,1.35,2671.4,2671.3,0.4469]
[1727525465836,1.72427,2671.4,2671.3,0.4469]
[1727525466136,1.35,2671.4,2671.3,0.4469]
[1727525466337,1.72427,2671.4,2671.3,0.4469]
[1727525466540,1.35,2671.4,2671.3,0.4469]
[1727525466832,1.72427,2671.4,2671.3,0.4469]
[1727525472543,1.35,2671.4,2671.2,0.4331]
[1727525472735,1.35,2671.4,2670.9,0.4434]
[1727525472736,0.37433,2671.1,2670.9,0.4434]
[1727525473046,0.37433,2671.1,2671.0,0.8665]
[1727525475340,1.72433,2671.1,2671.0,0.8665]
[1727525478349,1.72433,2671.1,2671.0,2.27374973]
[1727525478739,1.72433,2671.1,2671.0,0.8665]
[1727525480346,1.72433,2671.1,2671.0,2.27463155]
[1727525481253,1.72433,2671.1,2671.0,0.8665]
[1727525481942,5.46833,2671.1,2671.0,0.4248]
[1727525482751,1.72433,2671.1,2671.0,0.4248]
[1727525483444,5.46833,2671.1,2671.0,0.4248]
[1727525483648,1.72433,2671.1,2671.0,0.4248]
[1727525483849,5.46833,2671.1,2671.0,0.4248]
[1727525487848,6.40413,2671.1,2671.0,0.4248]
[1727525490150,6.214,2670.5,2669.5,4.38256626]
[1727525490452,0.37454,2669.5,2669.4,4.41494785]
[1727525490651,0.37454,2669.5,2668.0,1.12504284]
[1727525490652,1.35,2669.5,2669.1,0.457]
[1727525490841,1.35,2669.5,2669.1,4.87194785]
[1727525490842,4.5578,2669.2,2669.1,4.87194785]
[1727525491041,3.2078,2669.2,2669.1,4.87194785]
[1727525491241,4.5578,2669.2,2669.1,4.87194785]
[1727525494861,0.5737,2669.8,2669.2,0.37457]
[1727525494862,3.2078,2669.6,2669.2,0.37457]
[1727525495050,1.35,2669.4,2669.2,0.4701]
[1727525495250,3.2078,2669.7,2669.2,10.88504785]
[1727525495448,4.5578,2669.7,2669.6,4.41494785]
[1727525501050,4.93231,2669.7,2669.6,4.41494785]
[1727525502660,0.37457,2669.4,2669.2,0.4701]
[1727525502960,0.37457,2669.4,2669.2,0.84468]
[1727525502961,3.2078,2669.3,2669.2,0.84468]
[1727525503459,3.2078,2669.3,2669.2,5.25962785]
[1727525504667,3.2078,2669.3,2669.2,4.88504785]
[1727525506359,3.58237,2669.3,2669.2,4.88504785]
[1727525508852,3.7472,2669.2,2667.7,1.4638771]
[1727525509061,3.39269851,2669.3,2667.6,0.8772]
[1727525509062,4.5578,2667.8,2667.6,0.8772]
[1727525509364,1.35,2667.7,2667.6,0.8772]
[1727525509961,1.35,2667.7,2667.6,5.00081]
[1727525510263,1.35,2667.7,2667.6,4.626]
[1727525510561,1.35,2667.7,2667.6,5.00081]
[1727525511753,1.35,2667.7,2667.4,0.4707]
[1727525511754,1.35,2667.7,2667.0,3.2078]
[1727525511954,1.35,2667.1,2667.0,1.26139]
[1727525512162,6.1378,2667.5,2667.0,4.6361]
[1727525512361,6.1378,2667.5,2667.4,0.37484]
[1727525512866,6.1378,2667.5,2667.0,0.8865]
[1727525513255,6.1378,2667.5,2667.2,0.37485]
[1727525513569,6.1378,2667.5,2667.3,0.37485]
[1727525514162,6.1378,2667.5,2667.4,0.37484]
[1727525514761,3.2078,2667.5,2667.4,0.37484]
[1727525515163,3.2078,2667.5,2667.4,4.12364]
[1727525515660,3.2078,2667.5,2667.4,10.12364]
[1727525517561,3.2078,2667.5,2667.4,4.12364]
[1727525519859,3.2078,2667.5,2667.4,10.12364]
[1727525520059,3.2078,2667.5,2667.4,4.12364]
[1727525520260,3.2078,2667.5,2667.4,10.12364]
[1727525520460,3.2078,2667.5,2667.4,4.12364]
[1727525520660,3.2078,2667.5,2667.4,10.12364]
[1727525520861,3.2078,2667.5,2667.4,4.12364]
[1727525521765,3.2078,2667.5,2667.4,0.37484]
[1727525521964,3.2078,2667.5,2667.4,4.12364]
[1727525522163,3.2078,2667.5,2667.4,0.37484]
[1727525523159,3.2078,2667.5,2667.4,4.12364]
[1727525523356,0.435,2668.3,2667.4,12.6788]
[1727525523559,0.504,2668.6,2668.5,0.37468]
[1727525523560,0.348,2668.6,2668.5,0.37468]
[1727525523761,3.30463,2668.9,2668.7,0.37465]
[1727525523953,2.93,2668.9,2668.4,3.2078]
[1727525524162,3.30463,2668.9,2668.7,0.37465]
[1727525524356,2.93,2668.9,2668.6,0.37466]
[1727525524567,0.37464,2668.8,2668.6,0.37466]
[1727525524765,2.93,2668.9,2668.7,0.37465]
[1727525524966,2.93,2668.9,2668.4,3.2078]
[1727525525168,2.93,2668.9,2668.8,0.37464]
[1727525525373,3.30463,2668.9,2668.7,0.37465]
[1727525525668,2.93,2668.9,2668.6,0.37466]
[1727525525968,3.30463,2668.9,2668.7,0.37465]
[1727525526159,3.30463,2668.9,2668.6,0.37466]
[1727525528164,3.30463,2668.9,2668.5,0.8976]
[1727525528165,2.93,2668.7,2668.5,0.37468]
[1727525528369,2.93,2668.7,2668.4,0.3747]
[1727525528763,0.37467,2668.6,2668.4,0.3747]
[1727525529366,0.37467,2668.6,2668.2,0.429]
[1727525529367,0.37467,2668.6,2668.3,0.3747]
[1727525529566,3.30468,2668.5,2668.3,0.3747]
[1727525530176,2.93,2668.5,2668.3,0.3747]
[1727525530471,3.30468,2668.5,2668.3,0.3747]
[1727525530679,2.93,2668.5,2668.3,0.3747]
[1727525530875,3.30468,2668.5,2668.3,0.3747]
[1727525531172,2.93,2668.5,2668.3,0.3747]
[1727525531481,2.93,2668.5,2668.1,4.1353]
[1727525531968,2.93,2668.5,2668.3,0.3747]
[1727525532271,3.30468,2668.5,2668.1,4.1353]
[1727525532572,3.30468,2668.5,2668.3,0.37471]
[1727525532869,3.30468,2668.5,2668.3,0.3747]
[1727525533079,2.93,2668.5,2668.1,0.9275]
[1727525533262,2.93,2668.5,2668.4,0.3747]
[1727525534169,2.93,2668.5,2668.1,4.1353]
[1727525534170,3.30468,2668.5,2668.3,0.3747]
[1727525535165,3.30468,2668.5,2668.1,0.9275]
[1727525535166,2.93,2668.5,2668.4,0.3747]
[1727525535379,2.93,2668.5,2668.1,0.9275]
[1727525536076,2.93,2668.5,2668.4,0.3747]
[1727525536781,3.3995,2668.5,2668.4,0.3747]
[1727525537274,3.77419,2668.5,2668.3,0.3747]
[1727525537480,3.3995,2668.5,2668.4,0.3747]
[1727525537684,3.3995,2668.5,2668.3,0.3747]
[1727525537685,3.77419,2668.5,2668.3,0.3747]
[1727525538173,3.77419,2668.5,2668.1,0.9275]
[1727525538174,3.3995,2668.5,2668.1,0.9275]
[1727525538367,0.3747,2668.4,2667.9,0.4587]
[1727525538570,0.3747,2668.4,2668.2,0.37471]
[1727525538774,0.3747,2668.4,2667.7,4.14476]
[1727525538775,0.37478,2667.8,2667.7,3.2078]
[1727525538976,0.37478,2667.8,2667.5,17.361]
[1727525538977,0.37481,2667.6,2667.5,17.361]
[1727525539187,3.30481,2667.6,2667.5,17.361]
[1727525540869,7.99064,2667.6,2667.5,17.361]
[1727525541078,14.21264,2667.6,2667.5,17.361]
[1727525541772,10.54581,2667.6,2667.5,17.361]
[1727525542479,9.52681,2667.6,2667.5,17.361]
[1727525543676,3.30481,2667.6,2667.5,17.361]
[1727525544072,7.05361,2667.6,2667.5,17.361]
[1727525544271,3.30481,2667.6,2667.5,17.361]
[1727525545684,7.05361,2667.6,2667.5,17.361]
[1727525547076,3.30481,2667.6,2667.5,17.361]
[1727525548079,13.05361,2667.6,2667.5,17.361]
[1727525548279,0.37489,2667.1,2666.8,0.37491]
[1727525548481,2.93,2666.9,2666.8,7.55091]
[1727525552184,2.93,2666.9,2666.8,7.176]
[1727525553091,3.30491,2666.9,2666.8,7.176]
[1727525555979,4.24218,2666.9,2666.8,7.176]
[1727525556181,7.99178,2666.9,2666.8,7.176]
[1727525556492,5.06178,2666.9,2666.8,7.176]
[1727525556686,7.99178,2666.9,2666.8,7.176]
[1727525557191,7.05451,2666.9,2666.8,7.176]
[1727525558392,7.99178,2666.9,2666.8,7.176]
[1727525559389,13.99178,2666.9,2666.8,7.176]
[1727525560490,0.37498,2666.4,2666.3,0.4668]
[1727525560683,2.93,2666.4,2666.3,0.4668]
[1727525561695,3.30498,2666.4,2666.3,0.4668]
[1727525563094,2.93,2666.4,2666.3,0.4668]
[1727525563294,3.30498,2666.4,2666.3,0.4668]
[1727525563491,0.37498,2666.4,2666.3,0.4668]
[1727525563689,2.93,2666.4,2666.3,0.4668]
[1727525563889,3.30498,2666.4,2666.3,0.4668]
[1727525565002,2.93,2666.6,2666.3,0.4668]
[1727525565294,2.93,2666.4,2666.3,0.4668]
[1727525566994,2.93,2666.4,2666.3,0.84179]
[1727525567196,2.93,2666.4,2666.3,0.4668]
[1727525571600,2.1569,2666.4,2666.3,0.4668]
[1727525571804,3.2078,2666.8,2666.3,7.425]
[1727525572000,3.2078,2666.8,2666.4,0.37497]
[1727525572305,2.93,2666.6,2666.4,0.37497]
[1727525572506,2.93,2666.6,2666.5,0.37496]
[1727525572706,3.30495,2666.6,2666.4,0.37497]
[1727525572898,2.93,2666.6,2666.5,0.37496]
[1727525576202,2.93,2666.6,2666.5,4.12536]
[1727525578005,2.93,2666.6,2666.4,0.37497]
[1727525578207,2.93,2666.6,2666.3,0.4668]
[1727525578208,6.6529,2666.5,2666.3,0.84178]
[1727525578419,0.37498,2666.4,2666.3,0.4668]
[1727525578710,0.37498,2666.4,2666.3,0.37499]
[1727525580097,7.1396,2666.5,2666.2,0.8184]
[1727525580098,0.37499,2666.3,2666.2,0.8184]
[1727525580303,0.37498,2666.4,2666.3,0.37499]
[1727525581606,7.1396,2666.5,2666.2,0.8184]
[1727525581607,0.37499,2666.3,2666.2,0.8184]
[1727525581811,0.37499,2666.4,2666.3,0.37499]
[1727525582108,0.37499,2666.4,2666.2,0.4434]
[1727525582109,0.37499,2666.4,2666.2,0.8184]
[1727525582619,3.9318,2666.5,2666.2,0.4434]
[1727525582802,0.37501,2666.2,2666.0,0.88113]
[1727525583013,0.37502,2666.1,2666.0,1.0128]
[1727525584005,0.37502,2666.1,2666.0,1.38783]
[1727525584206,2.93,2666.2,2666.1,0.37502]
[1727525585008,4.2096,2666.5,2666.2,0.375]
[1727525585009,2.93,2666.4,2666.2,0.375]
[1727525585209,3.30498,2666.4,2666.0,1.98958425]
[1727525585510,3.30498,2666.4,2666.1,1.35179425]
[1727525585511,0.37499,2666.3,2666.1,1.35179425]
[1727525585915,0.37499,2666.3,2666.2,0.375]
[1727525586304,3.30499,2666.4,2666.2,0.375]
[1727525586507,3.30499,2666.4,2666.3,0.88199]
[1727525586706,3.30499,2666.4,2666.3,0.507]
[1727525586900,3.30499,2666.4,2666.3,0.88199]
[1727525587106,3.30499,2666.4,2666.3,0.507]
[1727525587408,3.30499,2666.4,2666.3,0.88199]
[1727525588003,2.93,2666.4,2666.3,0.88199]
[1727525590109,0.89006,2666.5,2666.4,0.37498]
[1727525590505,0.5151,2666.5,2666.4,0.37498]
[1727525590901,0.89006,2666.5,2666.3,0.88198]
[1727525591106,0.5151,2666.5,2666.4,0.37498]
[1727525591817,0.89006,2666.5,2666.3,0.507]
[1727525592012,3.2078,2666.8,2666.4,3.7504]
[1727525592212,0.37491,2666.9,2666.7,0.37493]
[1727525592509,2.93,2666.8,2666.6,0.97678425]
[1727525592712,2.93,2666.8,2666.7,0.37493]
[1727525594017,2.93,2666.8,2666.7,1.35171425]
[1727525594710,2.93,2666.8,2666.6,0.97678425]
[1727525594906,2.93,2666.8,2666.7,0.37493]
[1727525595110,2.93,2666.8,2666.6,1.35172425]
[1727525596319,2.93,2666.8,2666.7,0.97678425]
[1727525596819,2.93,2666.8,2666.7,1.35171425]
[1727525597327,2.93,2666.8,2666.7,0.37493]
[1727525597512,2.93,2666.8,2666.7,1.35171425]
[1727525598216,2.93,2666.8,2666.7,0.97678425]
[1727525598217,3.30492,2666.8,2666.7,0.97678425]
[1727525598411,2.93,2666.8,2666.7,1.35171425]
[1727525599012,2.93,2666.8,2666.7,0.97678425]
[1727525599218,2.93,2666.8,2666.7,1.35171425]
[1727525600720,2.93,2666.8,2666.7,2.66801837]
[1727525600929,0.37491,2666.9,2666.8,0.37492]
[1727525601120,0.37491,2666.9,2666.8,0.86512]
[1727525601311,0.37491,2666.9,2666.8,0.9622]
[1727525602116,3.30491,2666.9,2666.8,1.93898425]
[1727525602316,0.37492,2666.8,2666.7,0.97678425]
[1727525602615,0.37492,2666.8,2666.7,2.29885042]
[1727525602817,0.37492,2666.8,2666.7,0.98256339]
[1727525604014,2.93,2666.9,2666.7,0.98256339]
[1727525604221,0.37492,2666.8,2666.7,0.98256339]
[1727525604818,0.37492,2666.8,2666.6,0.472]
[1727525604819,0.37492,2666.8,2666.6,1.82951339]
[1727525605724,0.37492,2666.8,2666.6,1.82950339]
[1727525606326,0.37492,2666.8,2666.7,0.98256339]
[1727525607023,2.93,2666.9,2666.7,0.98256339]
[1727525607526,0.37493,2666.8,2666.6,1.82950339]
[1727525607722,0.37493,2666.8,2666.7,0.98256339]
[1727525607923,0.37493,2666.8,2666.6,1.82950339]
[1727525608128,0.37493,2666.8,2666.6,1.45456339]
[1727525608329,0.37493,2666.8,2666.6,1.82951339]
[1727525610227,1.35,2666.7,2666.6,1.82951339]
[1727525610435,1.35,2666.7,2666.6,3.14587953]
[1727525610929,1.35,2666.7,2666.6,3.14594875]
[1727525611129,1.35,2666.7,2666.6,2.16338536]
[1727525611332,1.35,2666.7,2666.6,3.62726246]
[1727525611522,1.35,2666.7,2666.6,2.16338536]
[1727525611725,1.35,2666.7,2666.6,3.62726246]
[1727525612028,3.2078,2667.0,2666.8,0.37492]
[1727525612029,4.9327,2667.0,2666.8,0.37492]
[1727525612336,4.9327,2667.0,2666.9,0.4981]
[1727525614230,3.2078,2667.4,2666.9,10.2477]
[1727525614532,1.35,2667.3,2667.2,0.37486]
[1727525614735,1.35,2667.3,2667.2,4.12366]
[1727525615138,1.72485,2667.3,2667.2,3.7488]
[1727525616244,1.72485,2667.3,2667.1,1.35754414]
[1727525616430,1.72485,2667.3,2667.1,5.10714414]
[1727525617232,0.37485,2667.3,2667.2,0.98267414]
[1727525617433,0.37486,2667.2,2667.1,0.98267414]
[1727525618041,1.72486,2667.3,2667.0,2.38005414]
[1727525618237,0.4961,2667.1,2667.0,2.38005414]
[1727525619531,0.4961,2667.1,2667.0,1.39738]
[1727525619734,0.4961,2667.1,2667.0,2.38005414]
[1727525621442,1.72485,2667.3,2667.0,2.38005414]
[1727525621443,0.37487,2667.2,2667.0,1.39738]
[1727525621643,0.87807,2667.2,2667.0,1.39738]
[1727525622237,0.87807,2667.2,2667.0,2.38005414]
[1727525622437,0.87807,2667.2,2667.0,1.39738]
[1727525623945,1.35,2667.1,2667.0,1.39739]
[1727525627042,1.8532,2667.2,2667.1,0.37488]
[1727525627946,1.35,2667.2,2667.1,0.37488]
[1727525628150,1.35,2667.2,2667.1,4.12448]
[1727525628452,1.35,2667.3,2667.2,0.37486]
[1727525629642,1.35,2667.3,2667.1,0.37487]
[1727525629845,1.35,2667.2,2667.1,0.37487]
[1727525630348,1.35,2667.2,2667.0,2.38005414]
[1727525630549,0.7029,2667.1,2667.0,2.38005414]
[1727525630748,0.7029,2667.1,2667.0,1.39738]
[1727525630943,0.7029,2667.1,2667.0,5.14698]
[1727525631744,0.7029,2667.1,2667.0,6.12965414]
[1727525632146,0.7029,2667.1,2667.0,5.14698]
[1727525632554,0.7029,2667.1,2667.0,6.12965414]
[1727525636053,0.7029,2667.1,2667.0,2.38005414]
[1727525636543,0.7029,2667.1,2667.0,0.98267414]
[1727525636863,0.37491,2666.9,2666.8,0.98267414]
[1727525637059,1.35,2667.0,2666.8,0.98267414]
[1727525637250,1.35,2667.0,2666.9,1.35758414]
[1727525637452,1.35,2667.0,2666.9,4.07157183]
[1727525637760,1.35,2667.0,2666.9,4.07162223]
[1727525637950,1.35,2667.0,2666.9,2.75558414]
[1727525638464,1.72489,2667.0,2666.9,2.75558414]
[1727525639855,1.35,2667.0,2666.9,2.75558414]
[1727525640260,0.93727,2666.9,2666.4,1.4638771]
[1727525640460,1.35,2666.5,2666.2,1.4638771]
[1727525640656,1.35,2666.5,2666.2,2.1274771]
[1727525640854,1.72497,2666.5,2666.2,2.1274771]
[1727525641052,1.72497,2666.5,2666.3,1.4638771]
[1727525641053,1.35,2666.5,2666.3,1.4638771]
[1727525641252,1.35,2666.5,2666.3,1.8388671]
[1727525641449,1.35,2666.5,2666.3,0.37499]
[1727525641649,1.35,2666.5,2666.2,2.1274771]
[1727525641953,1.35,2666.5,2666.3,1.4638771]
[1727525642359,1.35,2666.5,2666.2,2.5024671]
[1727525642560,1.35,2666.5,2666.3,0.37499]
[1727525643258,1.35,2666.5,2666.2,2.5024671]
[1727525643658,1.35,2666.5,2666.2,2.1274771]
[1727525643849,1.35,2666.5,2666.3,1.4638771]
[1727525644055,1.35,2666.5,2666.4,0.37498]
[1727525645565,1.35,2666.5,2666.4,4.12538]
[1727525646357,1.35,2666.6,2666.5,0.37495]
[1727525646762,1.35,2666.6,2666.3,1.4638771]
[1727525647156,1.35,2666.6,2666.5,0.37496]
[1727525648659,1.35,2666.6,2666.5,4.12536]
[1727525651668,1.35,2666.6,2666.5,0.37496]
[1727525653664,1.35,2666.6,2666.5,4.12536]
[1727525655959,1.35,2666.6,2666.5,0.37496]
[1727525658568,1.35,2666.6,2666.5,4.12536]
[1727525658762,3.2078,2666.7,2666.6,0.37495]
[1727525658966,3.2078,2666.7,2666.6,1.12055]
[1727525660463,3.2078,2666.7,2666.6,4.87095]
[1727525663466,3.58273,2666.7,2666.6,4.87095]
[1727525663867,3.2078,2666.7,2666.6,4.87095]
[1727525664069,3.2078,2666.7,2666.6,5.58065]
[1727525664372,3.58273,2666.7,2666.6,5.58065]
[1727525664670,3.2078,2666.7,2666.6,5.58065]
[1727525665070,3.58273,2666.7,2666.6,5.58065]
[1727525665272,3.58273,2666.7,2666.6,1.83025]
[1727525665775,3.58273,2666.7,2666.6,1.4553]
[1727525666072,3.58273,2666.7,2666.6,1.83025]
[1727525667469,3.2078,2666.7,2666.6,1.83025]
[1727525667670,3.58273,2666.7,2666.6,1.83025]
[1727525668967,0.37493,2666.7,2666.6,1.83025]
[1727525669172,1.72492,2666.8,2666.7,0.37493]
[1727525669369,0.37493,2666.7,2666.6,1.83024]
[1727525669572,1.35,2666.8,2666.6,1.4553]
[1727525669769,0.37493,2666.7,2666.6,1.83024]
[1727525672073,1.72493,2666.8,2666.7,0.37493]
[1727525672376,0.37493,2666.7,2666.6,1.83024]
[1727525673779,1.72492,2666.8,2666.7,0.37493]
[1727525676576,1.72492,2666.8,2666.6,1.4553]
[1727525676979,1.35,2666.8,2666.7,0.37493]
[1727525677176,3.2078,2666.9,2666.8,0.37492]
[1727525677375,3.906,2667.2,2667.1,0.37488]
[1727525677573,3.9337,2667.2,2667.1,0.37488]
[1727525677769,3.9337,2667.2,2667.1,2.7804098]
[1727525677770,4.30856,2667.2,2667.1,2.7804098]
[1727525677973,4.30856,2667.2,2667.1,1.30658567]
[1727525678173,4.30856,2667.2,2667.1,2.39506567]
[1727525678382,4.30856,2667.2,2667.1,2.02018567]
[1727525678574,4.30856,2667.2,2667.1,3.49405191]
[1727525678777,3.9337,2667.2,2667.1,2.3949516]
[1727525678982,0.7416,2667.4,2667.2,0.37486]
[1727525678983,3.19234,2667.4,2667.2,0.37486]
[1727525679281,2.45074,2667.4,2667.2,0.37486]
[1727525679482,2.45074,2667.4,2667.2,1.84872624]
[1727525680075,2.45074,2667.4,2667.2,0.37486]
[1727525680682,2.45074,2667.4,2667.2,1.08226]
[1727525680880,2.0759,2667.4,2667.2,1.08226]
[1727525681887,2.0759,2667.4,2667.3,0.37485]
[1727525682087,1.35,2667.5,2667.4,0.37484]
[1727525682291,0.3748,2667.7,2667.5,0.7614]
[1727525682583,1.35,2667.6,2667.5,1.5216]
[1727525683686,1.7248,2667.7,2667.5,1.5216]
[1727525683881,1.4492,2667.8,2667.5,1.5216]
[1727525684191,2.1036,2667.8,2667.6,0.37481]
[1727525684888,2.1036,2667.8,2667.5,1.89642]
[1727525685388,0.7536,2667.8,2667.7,0.37479]
[1727525685594,1.35,2667.9,2667.6,4.59635332]
[1727525685894,1.35,2667.9,2667.6,4.22155332]
[1727525686195,1.19506,2668.0,2667.6,4.22155332]
[1727525686381,1.35,2667.8,2667.6,4.22155332]
[1727525687085,1.35,2667.8,2667.6,4.59635332]
[1727525687286,1.35,2667.8,2667.6,4.22155332]
[1727525688888,0.8203,2668.0,2667.7,0.37479]
[1727525689089,2.1703,2668.0,2667.6,4.59635332]
[1727525689390,1.35,2667.9,2667.8,4.12733937]
[1727525689592,1.35,2667.9,2667.7,4.91243937]
[1727525689794,1.35,2667.9,2667.7,0.7851]
[1727525689993,1.72477,2667.9,2667.8,4.12659299]
[1727525690389,1.35,2667.9,2667.8,4.12659299]
[1727525696101,1.72477,2667.9,2667.8,4.12659299]
[1727525696295,1.72477,2667.9,2667.5,0.7614]